fUSD/lending_fUSD_20240905
["ID","MTS","AMOUNT","RATE_DAILY","PERIOD"]
[337283996,1725577832074,-395.38,0.00013697,2]
[337283997,1725577832083,-395.38,0.000137,2]
[337283998,1725577832093,-395.38,0.00013704,2]
[337283999,1725577832102,-395.38,0.00013707,2]
[337284000,1725577832111,-395.38,0.00013711,2]
[337284001,1725577832121,-395.38,0.00013714,2]
[337284002,1725577832130,-395.38,0.00013718,2]
[337284003,1725577832139,-395.38,0.00013722,2]
[337284004,1725577832148,-395.38,0.00013725,2]
[337284005,1725577832157,-188.6,0.00013737,2]
[337284006,1725577832167,-327.6182808,0.00013833,2]
[337284007,1725577832177,-171.53,0.00013879,2]
[337284008,1725577832185,-150.0,0.00013879,2]
[337284009,1725577832196,-250.0,0.000139,2]
[337284010,1725577832205,-640.0,0.000139,2]
[337284012,1725577832216,-242.63857905,0.00013963,2]
[337284014,1725577832227,-150.0,0.00014,2]
[337284015,1725577832237,-427.41,0.00014,2]
[337284017,1725577832246,-357.37,0.00014,2]
[337284019,1725577832256,-150.0,0.00014,2]
[337284021,1725577832266,-150.0,0.00014,2]
[337284023,1725577832276,-357.37,0.00014,2]
[337284025,1725577832285,-150.0,0.00014,2]
[337284027,1725577832296,-427.41,0.00014,2]
[337284029,1725577832306,-427.41,0.00014,2]
[337284031,1725577832315,-150.0,0.00014,2]
[337284033,1725577832325,-150.0,0.00014,2]
[337284035,1725577832334,-357.37,0.00014,2]
[337284037,1725577832344,-150.0,0.00014,2]
[337284039,1725577832353,-427.41,0.00014,2]
[337284040,1725577832362,-150.0,0.00014,2]
[337284041,1725577832371,-357.37,0.00014,2]
[337284042,1725577832381,-427.41,0.00014,2]
[337284043,1725577832391,-150.0,0.00014,2]
[337284044,1725577832401,-427.41,0.00014,2]
[337284045,1725577832411,-150.0,0.00014,2]
[337284046,1725577832420,-426.39,0.00014,2]
[337284047,1725577832430,-300.0,0.00014178,2]
[337284048,1725577832440,-356.21,0.00014178,2]
[337284049,1725577832619,-150.0,0.00014178,2]
[337284050,1725577832641,-427.41,0.00014178,2]
[337284051,1725577832651,-157.3,0.00014251,2]
[337284052,1725577832661,-260.5687,0.00014389,2]
[337284053,1725577832671,-1261.8627,0.00014389,2]
[337284054,1725577832681,-250.31,0.00014479,2]
[337284055,1725577832691,-250.31,0.00014479,2]
[337284056,1725577832701,-250.31,0.00014479,2]
[337284057,1725577832711,-250.31,0.00014479,2]
[337284058,1725577832722,-250.31,0.00014479,2]
[337284059,1725577832731,-250.31,0.00014479,2]
[337284060,1725577832741,-250.31,0.00014479,2]
[337284061,1725577832750,-250.31,0.00014479,2]
[337284062,1725577832760,-250.31,0.00014479,2]
[337284063,1725577832769,-250.31,0.00014479,2]
[337284064,1725577832778,-250.31,0.00014479,2]
[337284065,1725577832788,-250.31,0.00014479,2]
[337284066,1725577832799,-250.31,0.00014479,2]
[337284067,1725577832808,-250.31,0.00014479,2]
[337284068,1725577832817,-250.31,0.00014479,2]
[337284069,1725577832827,-250.31,0.00014479,2]
[337284070,1725577832836,-250.31,0.00014479,2]
[337284071,1725577832845,-250.31,0.00014479,2]
[337284072,1725577832855,-250.31,0.00014479,2]
[337284073,1725577832864,-250.31,0.00014479,2]
[337284074,1725577832873,-3714.211,0.00014479,2]
[337284075,1725577832883,-150.0,0.00014479,2]
[337284076,1725577832892,-13469.0,0.00014479,2]
[337284077,1725577832901,-1145.0,0.00014479,2]
[337284078,1725577832910,-779.07,0.00014479,3]
[337284079,1725577832920,-1430.49155701,0.00014489,2]
[337284080,1725577832934,-2203.60884502,0.00014489,2]
[337284081,1725577832946,-58170.99999999,0.00014489,2]
[337284082,1725577837966,-1078.0,0.00014479,2]
[337284083,1725577837977,-5534.25158562,0.00014489,2]
[337284084,1725577838254,-5015.3783051,0.00014489,2]
[337284123,1725577840009,-1130.54686907,0.00014489,2]
[337284124,1725577840021,-372.50946649,0.00014489,2]
[337284125,1725577840032,-562.25,0.00014489,2]
[337284126,1725577840307,-1814.21308593,0.00014489,2]
[337284127,1725577840319,-983.78113628,0.00014489,2]
[337284128,1725577840330,-760.32601188,0.00014489,2]
[337284130,1725577840342,-91930.04443761,0.00014489,2]
[337284132,1725577840351,-22654.2402667,0.0001449,3]
[337284133,1725577840360,-150.0,0.00014499,2]
[337284135,1725577840370,-1980.7459,0.00014499,2]
[337284137,1725577840379,-500.0,0.00014499,2]
[337284138,1725577840389,-500.0,0.00014499,2]
[337284139,1725577840399,-299.64330072,0.00014499,2]
[337284140,1725577840409,-500.0,0.00014499,2]
[337284141,1725577840419,-170608.99693502,0.000145,3]
[337284142,1725577840428,-160.51470132,0.000145,2]
[337284143,1725577840438,-1742.63386667,0.00014543,3]
[337284144,1725577840447,-181.04,0.00014553,2]
[337284145,1725577840457,-8713.16933335,0.00014569,3]
[337284146,1725577840468,-1742.63386667,0.00014569,3]
[337284147,1725577840476,-15683.7048,0.00014569,3]
[337284148,1725577840486,-500.0,0.00014579,2]
[337284149,1725577840495,-500.0,0.00014579,2]
[337284150,1725577840504,-500.0,0.00014579,2]
[337284151,1725577840514,-1514.79,0.00014581,2]
[337284152,1725577840523,-500.0,0.00014581,2]
[337284153,1725577840533,-630.28,0.00014581,2]
[337284154,1725577840543,-716.93,0.00014581,2]
[337284155,1725577840552,-500.0,0.00014581,2]
[337284156,1725577840562,-500.0,0.00014581,2]
[337284157,1725577840571,-1010.83,0.00014581,2]
[337284158,1725577840580,-500.0,0.00014581,2]
[337284159,1725577840590,-1665.77,0.00014582,2]
[337284160,1725577840600,-163.79,0.00014583,2]
[337284161,1725577840609,-1665.77,0.00014587,2]
[337284162,1725577840619,-500.0,0.00014588,2]
[337284163,1725577840628,-477.31615561,0.00014588,2]
[337284164,1725577840637,-500.0,0.00014588,2]
[337284165,1725577840647,-500.0,0.00014588,2]
[337284166,1725577840656,-500.0,0.00014589,2]
[337284167,1725577840665,-500.0,0.00014589,2]
[337284168,1725577840674,-262.04632328,0.00014589,2]
[337284169,1725577840684,-151.0,0.00014589,2]
[337284170,1725577840693,-151.0,0.00014589,2]
[337284171,1725577840703,-151.0,0.00014589,2]
[337284172,1725577840712,-151.0,0.00014589,2]
[337284173,1725577840721,-176.455801,0.00014589,2]
[337284174,1725577840731,-151.0,0.00014589,2]
[337284175,1725577840740,-151.0,0.00014589,2]
[337284176,1725577840750,-151.0,0.00014589,2]
[337284177,1725577840759,-151.0,0.00014589,2]
[337284178,1725577840769,-151.0,0.00014589,2]
[337284179,1725577840778,-151.0,0.00014589,2]
[337284180,1725577840787,-500.0,0.00014589,2]
[337284181,1725577840798,-151.0,0.00014589,2]
[337284182,1725577840808,-151.0,0.00014589,2]
[337284183,1725577840817,-151.0,0.00014589,2]
[337284184,1725577840827,-1514.79,0.00014589,2]
[337284185,1725577840837,-151.0,0.00014589,2]
[337284186,1725577840846,-500.0,0.00014589,2]
[337284187,1725577840856,-151.0,0.00014589,2]
[337284188,1725577840865,-630.28,0.00014589,2]
[337284189,1725577840875,-500.58751,0.00014589,2]
[337284190,1725577840884,-716.93,0.00014589,2]
[337284191,1725577840893,-500.58751,0.00014589,2]
[337284192,1725577840903,-500.0,0.00014589,2]
[337284193,1725577840912,-458.50075125,0.00014589,2]
[337284194,1725577840921,-500.0,0.00014589,2]
[337284195,1725577840930,-1010.83,0.00014589,2]
[337284196,1725577840940,-500.0,0.00014589,2]
[337284197,1725577840950,-151.0,0.00014589,2]
[337284198,1725577840959,-500.0,0.00014589,2]
[337284199,1725577840969,-2658.97,0.00014589,2]
[337284200,1725577840978,-500.0,0.00014589,2]
[337284201,1725577840987,-151.0,0.0001459,2]
[337284202,1725577840997,-151.0,0.0001459,2]
[337284203,1725577841006,-500.58751,0.0001459,2]
[337284204,1725577841015,-500.58751,0.0001459,2]
[337284205,1725577841025,-151.0,0.0001459,2]
[337284206,1725577841034,-163.79,0.0001459,2]
[337284207,1725577841044,-163.79,0.0001459,2]
[337284208,1725577841053,-163.79,0.0001459,2]
[337284209,1725577841063,-163.79,0.0001459,2]
[337284210,1725577841072,-98.83284016,0.00014593,2]
[337284217,1725577842909,-324.24499998,0.00013963,2]
[337284218,1725577842919,-2703.17754764,0.00014593,2]
[337284219,1725577842928,-781.77649948,0.00014593,2]
[337284220,1725577842943,-6002.81989825,0.00014593,2]
[337284221,1725577842956,-253.88923684,0.00014593,2]
[337284222,1725577842967,-11231.43428763,0.00014593,2]
[337284223,1725577842978,-457.46955249,0.00014593,2]
[337284224,1725577842989,-6950.22205377,0.00014593,2]
[337284225,1725577843001,-6560.72660935,0.00014593,2]
[337284226,1725577843012,-524.26,0.00014593,2]
[337284227,1725577843024,-13003.06198619,0.00014593,2]
[337284228,1725577843034,-1665.77,0.00014597,2]
[337284229,1725577843043,-1665.77,0.00014597,2]
[337284230,1725577843052,-686.40684663,0.00014598,2]
[337284231,1725577843062,-247.4176938,0.00014598,2]
[337284232,1725577843099,-252.5823062,0.00014598,2]
[337284233,1725577843108,-151.0,0.00014598,2]
[337284234,1725577843117,-1665.77,0.00014598,2]
[337284235,1725577843127,-1665.77,0.00014598,2]
[337284236,1725577843136,-1665.77,0.00014598,2]
[337284237,1725577843146,-1665.77,0.00014598,2]
[337284238,1725577843157,-500.0,0.00014598,2]
[337284239,1725577843167,-500.0,0.00014598,2]
[337284240,1725577843176,-1514.79,0.00014598,2]
[337284241,1725577843185,-500.0,0.00014598,2]
[337284242,1725577843194,-630.28,0.00014598,2]
[337284243,1725577843203,-716.93,0.00014598,2]
[337284244,1725577843212,-500.0,0.00014598,2]
[337284245,1725577843224,-500.0,0.00014598,2]
[337284246,1725577843233,-1010.83,0.00014598,2]
[337284247,1725577843242,-500.0,0.00014598,2]
[337284248,1725577843252,-500.0,0.00014598,2]
[337284249,1725577843261,-2658.97,0.00014598,2]
[337284250,1725577843270,-500.0,0.00014598,2]
[337284251,1725577843280,-151.0,0.00014599,2]
[337284252,1725577843289,-151.0,0.00014599,2]
[337284253,1725577843300,-1665.77,0.00014599,2]
[337284254,1725577843309,-1665.77,0.00014599,2]
[337284255,1725577843318,-1665.77,0.00014599,2]
[337284256,1725577843327,-1665.77,0.00014599,2]
[337284257,1725577843336,-1665.77,0.00014599,2]
[337284258,1725577843345,-1665.77,0.00014599,2]
[337284259,1725577843355,-1665.77,0.00014599,2]
[337284260,1725577843364,-1665.77,0.00014599,2]
[337284261,1725577843373,-1665.77,0.00014599,2]
[337284263,1725577843382,-1665.77,0.00014599,2]
[337284265,1725577843392,-1665.77,0.00014599,2]
[337284266,1725577843401,-1665.77,0.00014599,2]
[337284267,1725577843411,-1665.77,0.00014599,2]
[337284268,1725577843421,-1665.77,0.00014599,2]
[337284269,1725577843431,-1665.77,0.00014599,2]
[337284270,1725577843440,-1665.89321171,0.00014599,2]
[337284271,1725577843450,-151.0,0.00014599,2]
[337284272,1725577843459,-151.0,0.00014599,2]
[337284273,1725577843469,-151.370239,0.00014599,2]
[337284274,1725577843479,-151.0,0.00014599,2]
[337284275,1725577843488,-151.0,0.00014599,2]
[337284276,1725577843498,-151.0,0.00014599,2]
[337284277,1725577843507,-500.0,0.00014599,2]
[337284278,1725577843517,-500.0,0.00014599,2]
[337284279,1725577843526,-500.0,0.00014599,2]
[337284280,1725577843535,-500.0,0.00014599,2]
[337284281,1725577843546,-500.0,0.00014599,2]
[337284282,1725577843555,-500.0,0.00014599,2]
[337284283,1725577843564,-500.0,0.00014599,2]
[337284284,1725577843575,-500.0,0.00014599,2]
[337284285,1725577843585,-500.0,0.00014599,2]
[337284286,1725577843595,-500.0,0.00014599,2]
[337284287,1725577843604,-500.0,0.00014599,2]
[337284288,1725577843614,-500.0,0.00014599,2]
[337284289,1725577843624,-500.0,0.00014599,2]
[337284290,1725577843633,-501.17550049,0.00014599,2]
[337284291,1725577843643,-299.375488,0.00014599,2]
[337284292,1725577843653,-500.0,0.00014599,2]
[337284293,1725577843662,-500.0,0.00014599,2]
[337284294,1725577843671,-500.0,0.00014599,2]
[337284295,1725577843680,-453.92,0.00014599,2]
[337284296,1725577843690,-1514.79,0.00014599,2]
[337284297,1725577843699,-1514.79,0.00014599,2]
[337284298,1725577843709,-1514.79,0.00014599,2]
[337284299,1725577843718,-1514.79,0.00014599,2]
[337284300,1725577843729,-1514.79,0.00014599,2]
[337284301,1725577843738,-1514.79,0.00014599,2]
[337284302,1725577843748,-1514.79,0.00014599,2]
[337284303,1725577843757,-1514.79,0.00014599,2]
[337284304,1725577843766,-1514.79,0.00014599,2]
[337284305,1725577843776,-422.05738387,0.00014599,2]
[337284306,1725577843789,-451.22072221,0.00014599,2]
[337284307,1725577843801,-641.51189392,0.00014599,2]
[337284308,1725577843810,-1514.79,0.00014599,2]
[337284309,1725577843820,-1514.79,0.00014599,2]
[337284310,1725577843829,-1426.47810608,0.00014599,2]
[337284326,1725577847689,172.43,0.00012076,2]
[337284328,1725577881298,150.0,0.00025,60]
[337284329,1725577882421,150.0,0.00025,60]
[337284330,1725577882939,150.0,0.00025,60]
[337284331,1725577883559,150.0,0.00025,60]
[337284332,1725577884291,150.0,0.00025,60]
[337284333,1725577887507,150.0,0.00025,61]
[337284334,1725577888145,150.0,0.00025,61]
[337284335,1725577888692,150.0,0.00025,61]
[337284336,1725577889296,150.0,0.00025,61]
[337284337,1725577889883,150.0,0.00025,61]
[337284338,1725577893625,150.0,0.00025,62]
[337284339,1725577894350,150.0,0.00025,62]
[337284340,1725577894972,150.0,0.00025,62]
[337284341,1725577895595,150.0,0.00025,62]
[337284342,1725577896191,150.0,0.00025,62]
[337284343,1725577900999,150.0,0.00027,120]
[337284344,1725577901569,150.0,0.00027,120]
[337284345,1725577902177,150.0,0.00027,120]
[337284346,1725577902800,150.0,0.00027,120]
[337284347,1725577903381,150.0,0.00027,120]
[337284348,1725577923483,225.63,0.00010959,2]
[337284349,1725578101013,-300.0,0.00015,7]
[337284350,1725578114662,-1855.36418571,0.00015,5]
[337284352,1725578143899,-71004.52005862,0.0001459,3]
[337284354,1725578562613,163.8,0.00011649,2]
[337284368,1725578714871,150.0,0.00013118,2]
[337284400,1725579036129,-919.78,0.0001344,2]
[337284401,1725579036138,-250.0,0.00013469,2]
[337284402,1725579036147,-181.05,0.00013501,2]
[337284403,1725579036156,-300.0,0.00013535,2]
[337284404,1725579036165,-1252.02,0.00013536,2]
[337284405,1725579036238,-22647.98,0.00013536,2]
[337284406,1725579036248,-170.24,0.00013554,2]
[337284407,1725579036257,-250.0,0.00013567,2]
[337284408,1725579036266,-512.0,0.00013609,2]
[337284409,1725579036276,-488.0,0.0001361,2]
[337284410,1725579036285,-251.14,0.00013631,2]
[337284411,1725579036294,-291.37,0.000139,2]
[337284412,1725579036303,-200.0,0.000139,2]
[337284413,1725579036312,-163.8,0.00013913,2]
[337284414,1725579036321,-486.90965438,0.00014,2]
[337284415,1725579036330,-600.0,0.00014134,2]
[337284416,1725579036339,-185.823,0.000144,2]
[337284417,1725579036348,-367.244,0.000144,2]
[337284418,1725579036357,-756.64813238,0.000144,2]
[337284419,1725579036366,-1487.8249,0.0001449,2]
[337284420,1725579036375,-318.35583163,0.0001449,2]
[337284421,1725579036384,-150.0,0.00014498,2]
[337284422,1725579036393,-150.0,0.00014498,2]
[337284423,1725579036402,-150.0,0.00014498,2]
[337284424,1725579036411,-150.0,0.00014498,2]
[337284425,1725579036420,-150.0,0.00014498,2]
[337284426,1725579036430,-150.0,0.00014498,2]
[337284428,1725579036439,-620.8802,0.00014499,2]
[337284430,1725579036448,-7043.8624,0.00014499,2]
[337284431,1725579036457,-431.59001329,0.00014499,2]
[337284432,1725579036467,-2500.0,0.000145,2]
[337284433,1725579036475,-7500.0,0.000145,2]
[337284435,1725579036484,-600.0,0.00014542,2]
[337284436,1725579036494,-431.59001325,0.00014544,2]
[337284437,1725579036503,-600.0,0.0001455,2]
[337284438,1725579036512,-600.0,0.0001455,2]
[337284439,1725579036522,-4000.0,0.00014579,2]
[337284440,1725579036531,-431.59001325,0.00014588,2]
[337284441,1725579036539,-555.84,0.00014589,2]
[337284442,1725579036548,-500.0,0.00014589,2]
[337284443,1725579036558,-604.51874107,0.00014589,2]
[337284445,1725579036567,-508.61,0.00014589,2]
[337284447,1725579036576,-508.61,0.00014589,2]
[337284449,1725579036584,-508.61,0.00014589,2]
[337284451,1725579036594,-500.0,0.00014589,2]
[337284453,1725579036602,-500.0,0.00014589,2]
[337284454,1725579036611,-500.0,0.00014589,2]
[337284456,1725579036620,-551.49,0.00014589,2]
[337284458,1725579036629,-551.49,0.00014589,2]
[337284460,1725579036638,-551.49,0.00014589,2]
[337284462,1725579036649,-154.90507065,0.00014589,2]
[337284464,1725579036658,-500.0,0.00014589,2]
[337284465,1725579036667,-417.34505071,0.00014589,2]
[337284466,1725579036675,-627.32,0.00014589,2]
[337284467,1725579036685,-627.32,0.00014589,2]
[337284468,1725579036695,-627.32,0.00014589,2]
[337284469,1725579036704,-500.0,0.00014589,2]
[337284470,1725579036713,-500.0,0.00014589,2]
[337284471,1725579036722,-500.0,0.00014589,2]
[337284472,1725579036731,-500.0,0.00014589,2]
[337284473,1725579036742,-500.0,0.00014589,2]
[337284474,1725579036753,-500.0,0.00014589,2]
[337284475,1725579036762,-356.52003488,0.00014589,2]
[337284476,1725579036772,-500.0,0.00014589,2]
[337284477,1725579036780,-500.0,0.00014589,2]
[337284478,1725579036790,-2458.23,0.00014589,2]
[337284479,1725579036799,-2458.23,0.00014589,2]
[337284480,1725579036810,-2458.23,0.00014589,2]
[337284481,1725579036821,-884.47,0.00014589,2]
[337284482,1725579036831,-884.47,0.00014589,2]
[337284483,1725579036839,-884.47,0.00014589,2]
[337284484,1725579036849,-500.0,0.00014589,2]
[337284485,1725579036858,-500.0,0.00014589,2]
[337284486,1725579036867,-500.0,0.00014589,2]
[337284487,1725579036876,-500.0,0.00014589,2]
[337284488,1725579036885,-500.0,0.00014589,2]
[337284489,1725579036896,-500.0,0.00014589,2]
[337284490,1725579036906,-500.0,0.00014589,2]
[337284491,1725579036915,-500.0,0.00014589,2]
[337284492,1725579036923,-500.0,0.00014589,2]
[337284493,1725579036932,-500.0,0.00014589,2]
[337284494,1725579036942,-541.0186168,0.00014589,2]
[337284495,1725579036952,-500.0,0.00014589,2]
[337284496,1725579036961,-500.0,0.00014589,2]
[337284497,1725579036970,-500.0,0.00014589,2]
[337284498,1725579036980,-500.0,0.00014589,2]
[337284499,1725579036989,-500.0,0.00014589,2]
[337284500,1725579036999,-500.0,0.00014589,2]
[337284501,1725579037008,-500.0,0.00014589,2]
[337284502,1725579037018,-105446.425935,0.0001459,3]
[337284503,1725579037027,-237254.458355,0.0001459,3]
[337284504,1725579037037,-7832.58735371,0.0001459,3]
[337284505,1725579037049,-479.16,0.0001459,3]
[337284506,1725579037060,-249407.21354355,0.0001459,3]
[337284512,1725579038146,-500.0,0.00014589,2]
[337284513,1725579038155,-16249.90315973,0.0001459,3]
[337284525,1725579040227,-1247.72490867,0.0001459,3]
[337284526,1725579040277,-331.37356652,0.0001459,3]
[337284527,1725579040388,-1021.8560384,0.0001459,3]
[337284528,1725579040400,-6373.65476593,0.0001459,3]
[337284570,1725579043155,-302.0,0.00013963,2]
[337284571,1725579043166,-1979.18188074,0.00013963,2]
[337284578,1725579046642,-7718.81811926,0.00013963,2]
[337284579,1725579046652,-500.0,0.00014589,2]
[337284580,1725579046661,-500.0,0.00014589,2]
[337284581,1725579046671,-500.0,0.00014589,2]
[337284582,1725579046680,-440.8,0.00014589,3]
[337284583,1725579046690,-41552.6444133,0.0001459,3]
[337284584,1725579066642,155.7,0.00010959,2]
[337284585,1725579088819,1706.89,0.00025,60]
[337284586,1725579116235,194.91,0.00011715,2]
[337284587,1725579118685,750.0,0.00011,2]
[337284588,1725579119840,800.0,0.00013,2]
[337284592,1725579206871,500.0,0.0002623,120]
[337284594,1725579308143,150.0,0.00025,60]
[337284595,1725579309107,150.0,0.00025,60]
[337284596,1725579310044,150.0,0.00025,60]
[337284597,1725579318877,150.0,0.00027,120]
[337284598,1725579319857,150.0,0.00027,120]
[337284600,1725579343750,150.0,0.00025,62]
[337284601,1725579344819,150.0,0.00025,62]
[337284602,1725579345526,150.0,0.00025,62]
[337284603,1725579353355,150.0,0.00027,120]
[337284604,1725579354025,150.0,0.00027,120]
[337284605,1725579354740,150.0,0.00027,120]
[337284608,1725579600007,185.16,0.00011474,2]
[337284610,1725579913230,195.34915781,0.00013118,2]
[337284611,1725579948081,560.00903883,0.00027,120]
[337284612,1725580105982,175.9,0.00011353,2]
[337284621,1725580232120,-366.363424,0.00013244,2]
[337284622,1725580232130,-500.7,0.0001331,2]
[337284623,1725580232139,-250.0,0.0001331,2]
[337284624,1725580232148,-250.0,0.00013318,2]
[337284625,1725580232158,-250.0,0.00013318,2]
[337284626,1725580232167,-150.0,0.00013342,2]
[337284627,1725580232176,-233.09,0.00013359,2]
[337284628,1725580232185,-150.0,0.00013364,2]
[337284629,1725580232194,-23900.0,0.00013365,2]
[337284630,1725580232203,-6637.72,0.00013365,2]
[337284631,1725580232213,-491.8074183,0.000134,2]
[337284632,1725580232222,-500.0,0.000134,2]
[337284633,1725580232232,-1000.0,0.00013419,2]
[337284634,1725580232245,-175.9,0.00013617,2]
[337284635,1725580232256,-654.23,0.00013738,2]
[337284636,1725580232265,-400.0,0.000139,5]
[337284637,1725580232275,-164.7,0.000139,2]
[337284638,1725580232285,-157.47,0.000139,2]
[337284639,1725580232297,-299.99,0.000139,2]
[337284640,1725580232307,-800.0,0.00014,5]
[337284641,1725580232316,-791.84,0.00014055,2]
[337284642,1725580232326,-422.04,0.00014055,2]
[337284643,1725580232335,-1200.0,0.000141,5]
[337284644,1725580232345,-150.0,0.000142,2]
[337284645,1725580232355,-150.0,0.000142,2]
[337284646,1725580232364,-150.0,0.000142,2]
[337284647,1725580232374,-300.0,0.000142,2]
[337284648,1725580232383,-854.42,0.000142,2]
[337284649,1725580232392,-832.32,0.000142,2]
[337284650,1725580232402,-422.04,0.000142,2]
[337284651,1725580232411,-150.0,0.000142,2]
[337284652,1725580232420,-300.0,0.000142,2]
[337284653,1725580232429,-161.24,0.000142,2]
[337284654,1725580232438,-300.0,0.000142,2]
[337284656,1725580232447,-714.4,0.000142,2]
[337284658,1725580232456,-300.0,0.000142,2]
[337284659,1725580232466,-150.0,0.000142,2]
[337284660,1725580232476,-150.0,0.000142,2]
[337284662,1725580232485,-791.84,0.000142,2]
[337284664,1725580232494,-422.04,0.000142,2]
[337284666,1725580232503,-150.0,0.000142,2]
[337284668,1725580232514,-150.0,0.000142,2]
[337284670,1725580232523,-150.0,0.000142,2]
[337284672,1725580232533,-791.84,0.000142,2]
[337284674,1725580232542,-422.04,0.000142,2]
[337284675,1725580232551,-1600.0,0.000142,5]
[337284676,1725580232560,-150.0,0.000143,2]
[337284677,1725580232571,-2000.0,0.000143,5]
[337284678,1725580232580,-448.143,0.00014379,2]
[337284679,1725580232590,-984.24472727,0.00014389,2]
[337284680,1725580232600,-7500.0,0.0001439,2]
[337284681,1725580232609,-318.35583161,0.0001439,2]
[337284682,1725580232618,-267.79,0.000144,2]
[337284683,1725580232627,-584.20458512,0.000144,2]
[337284684,1725580232636,-400.0,0.000144,5]
[337284685,1725580232645,-3000.0,0.0001444,2]
[337284686,1725580232654,-984.2447272,0.00014446,2]
[337284687,1725580232664,-1076.49375956,0.0001445,2]
[337284688,1725580232673,-255.0,0.00014473,2]
[337284689,1725580232682,-356.68,0.00014479,3]
[337284690,1725580232691,-59113.7340846,0.0001448,3]
[337284691,1725580232700,-183.89752903,0.0001448,2]
[337284692,1725580232709,-100058.95034964,0.00014488,2]
[337284693,1725580232718,-500.0,0.00014488,2]
[337284694,1725580232727,-2913.066925,0.00014489,2]
[337284695,1725580232736,-176.93202708,0.00014489,2]
[337284696,1725580232745,-500.0,0.00014489,2]
[337284697,1725580232755,-555.79,0.00014489,2]
[337284698,1725580232764,-500.0,0.00014489,2]
[337284699,1725580232773,-500.0,0.00014489,2]
[337284700,1725580232782,-500.0,0.00014489,2]
[337284701,1725580232791,-500.0,0.00014489,2]
[337284702,1725580232800,-500.0,0.00014489,2]
[337284703,1725580232817,-500.0,0.00014489,2]
[337284704,1725580232830,-500.0,0.00014489,2]
[337284705,1725580232845,-500.0,0.00014489,2]
[337284706,1725580232857,-500.0,0.00014489,2]
[337284707,1725580232869,-500.0,0.00014489,2]
[337284708,1725580232882,-500.0,0.00014489,2]
[337284709,1725580232892,-500.0,0.00014489,2]
[337284710,1725580232903,-500.0,0.00014489,2]
[337284711,1725580232913,-500.0,0.00014489,2]
[337284712,1725580232925,-500.0,0.00014489,2]
[337284713,1725580232937,-500.0,0.00014489,2]
[337284714,1725580232948,-541.95342343,0.00014489,2]
[337284715,1725580232960,-604.46996935,0.00014489,2]
[337284716,1725580232971,-500.0,0.00014489,2]
[337284717,1725580232983,-500.0,0.00014489,2]
[337284718,1725580232995,-500.0,0.00014489,2]
[337284719,1725580233008,-500.0,0.00014489,2]
[337284720,1725580233019,-500.0,0.00014489,2]
[337284721,1725580233030,-158.57026619,0.00014489,2]
[337284722,1725580233043,-502.36,0.00014489,2]